bitfinex-derivatives/quotes_BTCF0:USTF0_20210108
["timestamp","ask_amount","ask_price","bid_price","bid_amount"]
[1610069280588,0.13632608,38432.0,38430.0,0.13632608]
[1610069280788,0.12886,38447.0,38430.0,0.13632608]
[1610069281189,0.12886,38447.0,38431.0,0.03215058]
[1610069281989,0.01572154,38470.0,38431.0,0.03215058]
[1610069282393,0.48285567,38471.0,38431.0,0.03215058]
[1610069282590,0.13632608,38444.0,38439.0,0.13632608]
[1610069282990,0.13632608,38444.0,38440.0,0.03213724]
[1610069283192,0.10425,38462.0,38440.0,0.16689724]
[1610069283593,0.10425,38462.0,38441.0,0.03213305]
[1610069283791,0.1569,38478.0,38441.0,0.03213305]
[1610069283991,0.48394018,38487.0,38441.0,0.03213305]
[1610069284592,0.13632608,38486.0,38477.0,0.13632608]
[1610069285193,0.13632608,38486.0,38478.0,0.03211952]
[1610069286595,0.08441,38490.0,38478.0,0.03211952]
[1610069286596,0.08441,38490.0,38485.0,0.13632608]
[1610069286995,0.08441,38490.0,38486.0,0.03211492]
[1610069287598,0.08441,38490.0,38460.0,0.0923751]
[1610069287797,0.08441,38490.0,38487.0,0.03211399]
[1610069287997,0.08441,38490.0,38464.0,0.12833]
[1610069288396,0.08441,38490.0,38488.0,0.03211311]
[1610069288596,0.13632608,38489.0,38479.0,0.13632608]
[1610069288796,0.13632608,38489.0,38464.0,0.12833]
[1610069289197,0.26954608,38489.0,38465.0,0.0321118]
[1610069289997,0.26954608,38489.0,38457.0,0.0321167]
[1610069290200,0.26954608,38489.0,38466.0,0.03211538]
[1610069290398,0.26954608,38489.0,38458.0,0.03211569]
[1610069290598,0.13632608,38481.0,38474.0,0.13632608]
[1610069290998,0.13632608,38481.0,38475.0,0.03211471]
[1610069291799,0.13632608,38481.0,38465.0,0.03211468]
[1610069292000,0.26526608,38481.0,38476.0,0.03211734]
[1610069292399,0.26526608,38481.0,38465.0,0.03211668]
[1610069292599,0.12894,38481.0,38477.0,0.03211658]
[1610069292802,0.12894,38481.0,38466.0,0.03211989]
[1610069293202,0.12894,38481.0,38465.0,0.03211733]
[1610069293400,0.12894,38481.0,38467.0,0.03211745]
[1610069293604,0.12894,38481.0,38464.0,0.11436]
[1610069293605,0.12894,38481.0,38466.0,0.03211683]
[1610069293800,0.12894,38481.0,38464.0,0.11436]
[1610069294000,0.12894,38481.0,38468.0,0.03211763]
[1610069294200,0.12894,38481.0,38465.0,0.03211691]
[1610069294401,0.12894,38481.0,38469.0,0.0321176]
[1610069294800,0.12894,38481.0,38466.0,0.03211898]
[1610069295000,0.12894,38481.0,38456.0,4.21718]
[1610069295001,0.12894,38481.0,38470.0,0.03211873]
[1610069295200,0.12894,38481.0,38467.0,0.03117995]
[1610069295602,0.13322,38489.0,38471.0,0.0311814]
[1610069295802,0.1569,38499.0,38471.0,0.09049]
[1610069296003,0.1569,38499.0,38472.0,0.03117731]
[1610069296805,0.13632608,38476.0,38473.0,0.13632608]
[1610069297203,0.13632608,38476.0,38474.0,0.03117762]
[1610069298405,0.13632608,38476.0,38457.0,0.08963576]
[1610069298804,0.12658,38481.0,38475.0,0.03117998]
[1610069299004,0.12658,38481.0,38467.0,0.13632608]
[1610069299205,0.12658,38481.0,38476.0,0.03117908]
[1610069299604,0.12658,38481.0,38468.0,0.03117957]
[1610069299805,0.12658,38481.0,38477.0,0.0311805]
[1610069300004,0.12658,38481.0,38456.0,0.08278]
[1610069300304,0.12658,38481.0,38478.0,0.03118216]
[1610069300705,0.13632608,38479.0,38457.0,0.03118314]
[1610069300905,0.13632608,38479.0,38450.0,0.13632608]
[1610069301107,0.13632608,38479.0,38458.0,0.03118651]
[1610069301406,0.13632608,38479.0,38451.0,0.03118659]
[1610069301605,0.13632608,38479.0,38450.0,0.13632608]
[1610069301606,0.13632608,38479.0,38459.0,0.03118703]
[1610069301905,0.13632608,38479.0,38451.0,0.03118673]
[1610069302706,0.13632608,38470.0,38465.0,0.13632608]
[1610069303109,0.13632608,38470.0,38466.0,0.03118433]
[1610069304110,0.13632608,38470.0,38466.0,0.14420433]
[1610069304710,0.13632608,38470.0,38469.0,0.13632608]
[1610069305111,0.13632608,38470.0,38469.0,0.16750578]
[1610069306013,0.13632608,38470.0,38469.0,0.16750527]
[1610069307614,0.11084,38491.0,38469.0,0.16750527]
[1610069307814,0.2724,38498.0,38469.0,0.16750527]
[1610069307815,0.34275124,38481.0,38469.0,0.16750527]
[1610069308115,0.34275124,38481.0,38470.0,0.03117854]
[1610069308715,0.13632608,38476.0,38475.0,0.13632608]
[1610069308915,0.34275124,38481.0,38470.0,0.03117854]
[1610069309116,0.34275124,38481.0,38475.0,0.03117938]
[1610069309416,0.34275124,38481.0,38471.0,0.03117943]
[1610069309617,0.34275124,38481.0,38476.0,0.03117886]
[1610069310017,0.34275124,38481.0,38467.0,0.03117904]
[1610069310217,0.34275124,38481.0,38477.0,0.03117837]
[1610069310420,0.34275124,38481.0,38476.0,0.10362]
[1610069310819,0.34275124,38481.0,38480.0,0.13632608]
[1610069311219,0.34275124,38481.0,38480.0,0.16749925]
[1610069314225,0.07365124,38481.0,38480.0,0.16749925]
[1610069316126,0.13632608,38510.0,38480.0,0.16749925]
[1610069316527,0.13632608,38510.0,38481.0,0.03115999]
[1610069316728,0.13632608,38520.0,38509.0,0.13632608]
[1610069317128,0.23967608,38520.0,38510.0,0.03115595]
[1610069317729,0.10335,38520.0,38510.0,0.03115595]
[1610069318130,0.2841,38541.0,38510.0,0.03115595]
[1610069318730,0.13632608,38522.0,38520.0,0.13632608]
[1610069319131,0.09365,38530.0,38520.0,0.13632608]
[1610069319331,0.10662,38539.0,38521.0,0.03114919]
[1610069320732,0.13632608,38522.0,38521.0,0.03114919]
[1610069320933,0.13632608,38522.0,38518.0,0.03114805]
[1610069321133,0.22261608,38522.0,38521.0,0.03114857]
[1610069321333,0.22261608,38522.0,38519.0,0.031156]
[1610069321733,0.22261608,38522.0,38521.0,0.0311524]
[1610069321933,0.22261608,38522.0,38520.0,0.03115114]
[1610069322134,0.22261608,38522.0,38521.0,0.031152]
[1610069322635,0.22261608,38522.0,38507.0,0.03115222]
[1610069324735,0.22261608,38522.0,38519.0,0.13632608]
[1610069325137,0.22261608,38522.0,38520.0,0.03114829]
[1610069326039,0.22261608,38522.0,38497.0,0.13587]
[1610069326241,0.22261608,38522.0,38492.0,0.14603867]
[1610069326442,0.22261608,38522.0,38498.0,0.03115351]
[1610069326642,0.22261608,38522.0,38492.0,0.17719143]
[1610069326842,0.08629,38522.0,38496.0,0.13632608]
[1610069327043,0.0771,38521.0,38496.0,0.13632608]
[1610069327243,0.0771,38521.0,38497.0,0.0311592]
[1610069327845,0.0771,38521.0,38492.0,0.1771983]
[1610069328045,0.0771,38521.0,38498.0,0.0311635]
[1610069328247,0.0771,38521.0,38493.0,0.03116281]
[1610069328646,0.0771,38521.0,38499.0,0.03116338]
[1610069328848,0.13632608,38500.0,38494.0,0.03116364]
[1610069329047,0.13632608,38500.0,38492.0,0.05840396]
[1610069329448,0.13632608,38500.0,38495.0,0.03116571]
[1610069329648,0.13632608,38500.0,38493.0,0.0311661]
[1610069329849,0.13632608,38500.0,38469.0,0.14610456]
[1610069329850,0.13632608,38500.0,38496.0,0.03116832]
[1610069330049,0.0768,38499.0,38496.0,0.03116832]
[1610069330249,0.0768,38499.0,38494.0,0.03117327]
[1610069330450,0.13632608,38500.0,38469.0,0.14610456]
[1610069330650,0.13632608,38500.0,38495.0,0.03117589]
[1610069330850,0.13632608,38496.0,38495.0,0.03117589]
[1610069331053,0.13632608,38496.0,38469.0,0.31360785]
[1610069331250,0.24109608,38496.0,38495.0,0.03117721]
[1610069331454,0.24109608,38496.0,38470.0,0.0311779]
[1610069331853,0.24109608,38496.0,38495.0,0.03118101]
[1610069332052,0.24109608,38496.0,38471.0,0.03118207]
[1610069332252,0.24109608,38496.0,38495.0,0.03118418]
[1610069332752,0.24109608,38496.0,38495.0,0.0311843]
[1610069333153,0.24109608,38496.0,38467.0,0.17737254]
[1610069333354,0.24109608,38496.0,38495.0,0.03118456]
[1610069333553,0.24109608,38496.0,38468.0,0.03118486]
[1610069333953,0.24109608,38496.0,38455.0,0.03118578]
[1610069334156,0.31829608,38496.0,38469.0,0.03118702]
[1610069334353,0.31829608,38496.0,38444.0,0.14619649]
[1610069334354,0.31829608,38496.0,38456.0,0.03118702]
[1610069334753,0.31829608,38496.0,38444.0,0.17738477]
[1610069334954,0.13632608,38445.0,38444.0,0.14619649]
[1610069335553,0.13632608,38445.0,38444.0,0.03119022]
[1610069335753,0.12493,38462.0,38444.0,0.03119022]
[1610069335954,0.12493,38462.0,38444.0,0.03090579]
[1610069336154,0.12493,38462.0,38441.0,0.03118987]
[1610069336355,0.12493,38462.0,38445.0,0.03118925]
[1610069336553,0.12493,38462.0,38439.0,0.11715]
[1610069336554,0.0772,38475.0,38442.0,0.03118963]
[1610069336956,0.13632608,38452.0,38448.0,0.13632608]
[1610069337156,0.13632608,38452.0,38443.0,0.03118967]
[1610069337354,0.13632608,38452.0,38449.0,0.03119076]
[1610069337554,0.13632608,38452.0,38439.0,0.11715]
[1610069337555,0.077,38451.0,38444.0,0.03119218]
[1610069337855,0.077,38451.0,38440.0,0.03119244]
[1610069338055,0.13632608,38452.0,38440.0,0.03119244]
[1610069338255,0.13632608,38452.0,38445.0,0.03119456]
[1610069338456,0.13632608,38452.0,38441.0,0.03119503]
[1610069338656,0.13632608,38452.0,38446.0,0.03119681]
[1610069339055,0.13632608,38447.0,38442.0,0.03119666]
[1610069339257,0.13632608,38447.0,38439.0,0.11715]
[1610069339456,0.13632608,38447.0,38443.0,0.03119763]
[1610069339655,0.13632608,38447.0,38443.0,0.16114763]
[1610069339855,3.7455,38489.0,38443.0,0.12995]
[1610069340055,3.7455,38489.0,38444.0,0.03119464]
[1610069340255,3.7455,38489.0,38444.0,0.03147733]
[1610069340856,0.0781,38475.0,38445.0,0.00028441]
[1610069341057,0.0781,38475.0,38457.0,0.13632608]
[1610069341257,0.0781,38475.0,38457.0,0.25786608]
[1610069341456,0.13632608,38478.0,38457.0,0.25786608]
[1610069341657,0.13632608,38478.0,38458.0,0.03118576]
[1610069343057,0.0771,38480.0,38466.0,0.13632608]
[1610069343257,0.0771,38480.0,38466.0,0.25873608]
[1610069343457,0.0771,38480.0,38467.0,0.03118105]
[1610069344057,0.0778,38479.0,38467.0,0.03118105]
[1610069344258,0.0778,38479.0,38468.0,0.03117672]
[1610069344857,0.0778,38479.0,38467.0,0.03117331]
[1610069345057,0.13632608,38483.0,38478.0,0.13632608]
[1610069345259,0.13632608,38483.0,38478.0,0.26903608]
[1610069345657,0.13632608,38483.0,38479.0,0.03112086]
[1610069346260,0.13632608,38483.0,38478.0,0.26903608]
[1610069346460,0.0776,38482.0,38480.0,0.03117398]
[1610069346859,0.0776,38482.0,38479.0,0.03117398]
[1610069347061,0.0776,38482.0,38481.0,0.03117374]
[1610069347260,0.0776,38482.0,38480.0,0.03117355]
[1610069347662,0.0776,38482.0,38481.0,0.03117346]
[1610069348063,0.0776,38482.0,38479.0,0.03117241]
[1610069348463,0.1059,38508.0,38481.0,0.03117212]
[1610069348663,0.1059,38508.0,38480.0,0.03117099]
[1610069348862,0.1059,38508.0,38482.0,0.03116923]
[1610069349062,0.1059,38508.0,38501.0,0.13632608]
[1610069349464,0.0782,38507.0,38502.0,0.03116837]
[1610069351164,0.21452608,38507.0,38506.0,0.13632608]
[1610069351564,0.21452608,38507.0,38506.0,0.30389107]
[1610069357170,0.21452608,38507.0,38506.0,0.16756499]
[1610069358672,0.0782,38507.0,38506.0,0.16756499]
[1610069359073,0.0782,38507.0,38506.0,0.30389107]
[1610069360575,0.2783,38519.0,38506.0,0.30389107]
[1610069360775,0.13632608,38520.0,38506.0,0.30389107]
[1610069360978,0.13632608,38520.0,38507.0,0.03208424]
[1610069361176,0.1569,38540.0,38519.0,0.13632608]
[1610069361378,0.2974,38549.0,38519.0,0.13632608]
[1610069361379,0.09781,38543.0,38519.0,0.13632608]
[1610069361576,0.09781,38543.0,38520.0,0.03208274]
[1610069363076,0.13632608,38538.0,38536.0,0.13632608]
[1610069363276,0.0778,38537.0,38536.0,0.13632608]
[1610069363477,0.0778,38537.0,38520.0,0.03208274]
[1610069363478,0.13632608,38538.0,38520.0,0.03208274]
[1610069363676,0.13632608,38538.0,38536.0,0.03208629]
[1610069363877,0.13632608,38538.0,38531.0,0.08867]
[1610069364276,0.13632608,38538.0,38537.0,0.03208375]
[1610069364477,0.13632608,38538.0,38532.0,0.03208396]
[1610069364676,0.13632608,38538.0,38537.0,0.03208343]
[1610069364879,0.13632608,38538.0,38537.0,0.03179325]
[1610069365078,0.13632608,38538.0,38533.0,0.03208468]
[1610069365276,0.13632608,38538.0,38537.0,0.0320851]
[1610069365479,0.13632608,38538.0,38534.0,0.03208657]
[1610069365677,0.62622608,38538.0,38510.0,0.06221559]
[1610069365878,0.21492608,38538.0,38510.0,0.06221559]
[1610069366080,3.3003,38529.0,38510.0,0.09430422]
[1610069366278,3.43515,38529.0,38507.0,0.03208879]
[1610069366479,3.43515,38529.0,38511.0,0.00029025]
[1610069366678,3.43515,38529.0,38511.0,0.03209129]
[1610069366879,3.43515,38529.0,38507.0,0.03209292]
[1610069367078,3.43515,38529.0,38512.0,0.03209577]
[1610069367478,3.43515,38529.0,38508.0,0.03209852]
[1610069367680,3.43515,38529.0,38513.0,0.03209898]
[1610069367878,3.43515,38529.0,38509.0,0.03210079]
[1610069368280,3.43515,38529.0,38483.0,0.24142995]
[1610069368281,3.43515,38529.0,38514.0,0.03210129]
[1610069368480,3.43515,38529.0,38510.0,0.03210222]
[1610069368681,3.43515,38529.0,38515.0,0.03210425]
[1610069369080,3.43515,38529.0,38511.0,0.03210427]
[1610069369281,0.13632608,38516.0,38483.0,0.24142995]
[1610069369481,0.23230608,38516.0,38512.0,0.03210645]
[1610069369882,0.23230608,38516.0,38492.0,0.03210603]
[1610069370081,0.23230608,38516.0,38513.0,0.03210585]
[1610069370284,0.23230608,38516.0,38493.0,0.03210514]
[1610069370682,0.23230608,38516.0,38514.0,0.03210458]
[1610069370882,0.23230608,38516.0,38492.0,0.12209]
[1610069370883,0.23230608,38516.0,38494.0,0.03210438]
[1610069371083,0.23230608,38516.0,38515.0,0.03210423]
[1610069371283,0.09598,38516.0,38515.0,0.03210423]
[1610069371483,0.13485,38529.0,38501.0,0.12392]
[1610069371684,0.13485,38529.0,38515.0,0.03210201]
[1610069371883,0.13485,38529.0,38502.0,0.03210094]
[1610069372083,3.9915,38532.0,38502.0,0.03210094]
[1610069372284,0.1569,38537.0,38516.0,0.0320994]
[1610069372484,0.1569,38537.0,38503.0,0.03209829]
[1610069372684,0.1569,38537.0,38517.0,0.03209857]
[1610069372885,0.24886,38537.0,38517.0,0.03209857]
[1610069373084,0.24886,38537.0,38504.0,0.03209822]
[1610069373283,0.24886,38537.0,38501.0,0.12392]
[1610069373284,0.24886,38537.0,38518.0,0.03209861]
[1610069373483,0.24886,38537.0,38506.0,0.13632608]
[1610069373683,0.24886,38537.0,38505.0,0.03209914]
[1610069373885,0.24886,38537.0,38519.0,0.03209831]
[1610069374083,0.24886,38537.0,38506.0,0.03209929]
[1610069374283,0.24886,38537.0,38520.0,0.0320997]
[1610069374684,0.24886,38537.0,38507.0,0.03210049]
[1610069374884,0.24886,38537.0,38521.0,0.03209944]
[1610069375084,0.24886,38537.0,38508.0,0.03209904]
[1610069375285,0.13632608,38517.0,38512.0,0.13632608]
[1610069375684,0.13632608,38517.0,38513.0,0.06419343]
[1610069375884,0.13632608,38517.0,38513.0,0.03209672]
[1610069379888,0.13632608,38517.0,38502.0,0.03209751]
[1610069380488,0.61,38516.0,38502.0,0.03209751]
[1610069381091,0.61,38516.0,38493.0,0.03210137]
[1610069381290,0.13632608,38494.0,38485.0,0.13632608]
[1610069381892,0.13632608,38494.0,38493.0,0.03210296]
[1610069382092,0.13632608,38494.0,38486.0,0.03210362]
[1610069382293,0.13632608,38494.0,38493.0,0.03210378]
[1610069382692,0.13632608,38494.0,38487.0,0.03210545]
[1610069382892,0.13632608,38494.0,38493.0,0.03181499]
[1610069383092,0.13632608,38494.0,38488.0,0.03181593]
[1610069383296,0.13632608,38489.0,38488.0,0.03181593]
[1610069383494,0.13632608,38489.0,38474.0,0.24796608]
[1610069383694,0.13632608,38489.0,38488.0,0.03210703]
[1610069383894,0.13632608,38489.0,38475.0,0.03210792]
[1610069384294,0.13632608,38489.0,38488.0,0.03210798]
[1610069384495,0.13632608,38489.0,38474.0,0.24796608]
[1610069384496,0.13632608,38489.0,38476.0,0.03210789]
[1610069384696,0.13632608,38489.0,38488.0,0.03210767]
[1610069384896,0.13632608,38489.0,38488.0,0.03181727]
[1610069385096,0.13632608,38489.0,38477.0,0.03210784]
[1610069385298,0.13632608,38478.0,38474.0,0.24796608]
[1610069385497,0.13632608,38478.0,38474.0,0.11164]
[1610069385898,0.13632608,38478.0,38475.0,0.0321129]
[1610069386297,0.13632608,38478.0,38465.0,0.08428]
[1610069386298,0.13632608,38478.0,38476.0,0.03211393]
[1610069386497,0.13632608,38478.0,38476.0,0.03182347]
[1610069386697,0.13632608,38478.0,38476.0,0.06393945]
[1610069386899,0.13632608,38478.0,38476.0,0.03182347]
[1610069387098,0.74192608,38478.0,38477.0,0.03211754]
[1610069387898,0.74192608,38478.0,38456.0,0.10107]
[1610069388100,0.23633608,38478.0,38477.0,0.00029053]
[1610069388298,3.26343608,38478.0,38477.0,0.00029053]
[1610069388500,0.23633608,38478.0,38477.0,0.00029054]
[1610069388698,1.73633608,38478.0,38451.0,0.03212335]
[1610069388899,1.73633608,38478.0,38477.0,0.00029054]
[1610069388900,5.22223608,38478.0,38477.0,0.00029054]
[1610069389199,5.22223608,38478.0,38447.0,0.0321295]
[1610069389599,5.22223608,38478.0,38477.0,0.0002906]
[1610069389801,5.22223608,38478.0,38448.0,0.03213049]
[1610069390000,3.72223608,38478.0,38477.0,0.00029064]
[1610069390200,3.72223608,38478.0,38446.0,4.3156]
[1610069390400,0.23633608,38478.0,38459.0,3.8287]
[1610069390801,0.23633608,38478.0,38460.0,0.0944461]
[1610069391201,0.13632608,38472.0,38465.0,0.13632608]
[1610069391601,0.13632608,38472.0,38466.0,0.0321279]
[1610069392702,0.13632608,38472.0,38465.0,0.03212495]
[1610069392902,0.13632608,38472.0,38451.0,0.09238]
[1610069392903,0.13632608,38472.0,38467.0,0.03212629]
[1610069393302,0.10001,38478.0,38452.0,0.03212788]
[1610069393303,0.4821,38467.0,38452.0,0.03212788]
[1610069393504,0.56727,38467.0,38441.0,0.06229831]
[1610069393704,0.56727,38467.0,38453.0,0.0321302]
[1610069394104,0.56727,38467.0,38450.0,0.0321312]
[1610069394304,0.56727,38467.0,38454.0,0.03212982]
[1610069394705,0.56727,38467.0,38452.0,0.11344]
[1610069394908,0.56727,38467.0,38455.0,0.03212734]
[1610069395106,0.56727,38467.0,38453.0,0.0321286]
[1610069395307,0.13632608,38460.0,38453.0,0.0321286]
[1610069395506,0.13632608,38460.0,38456.0,0.03212824]
[1610069395707,0.13632608,38460.0,38454.0,0.03212873]
[1610069395907,0.13632608,38460.0,38457.0,0.03212813]
[1610069396108,0.13632608,38460.0,38457.0,0.09515]
[1610069396507,0.13632608,38460.0,38458.0,0.03212606]
[1610069398012,0.13632608,38460.0,38453.0,0.03212833]
[1610069398411,0.13632608,38460.0,38459.0,0.03184013]
[1610069398613,0.13632608,38460.0,38454.0,0.03213027]
[1610069398811,0.13632608,38460.0,38459.0,0.0321319]
[1610069399213,0.13632608,38460.0,38455.0,0.03213031]
[1610069399413,0.13632608,38460.0,38452.0,0.13632608]
[1610069399414,0.13632608,38460.0,38459.0,0.03212996]
[1610069399613,0.13632608,38460.0,38456.0,0.03212865]
[1610069399814,0.10001,38478.0,38459.0,0.03183617]
[1610069400013,4.96672,38496.0,38459.0,0.03212674]
[1610069400213,4.96672,38496.0,38455.0,0.03212504]
[1610069400413,3.46672,38496.0,38460.0,0.03212286]
[1610069400614,3.46672,38496.0,38460.0,0.03183232]
[1610069400815,3.46672,38496.0,38456.0,0.03212228]
[1610069401014,3.46672,38496.0,38461.0,0.03212145]
[1610069401215,3.46672,38496.0,38457.0,0.03212093]
[1610069401414,0.13632608,38470.0,38468.0,0.13632608]
[1610069401815,0.13632608,38470.0,38469.0,0.03211857]
[1610069402014,0.13632608,38470.0,38469.0,0.15662857]
[1610069403718,0.13632608,38470.0,38469.0,0.03211857]
[1610069404117,0.13632608,38470.0,38455.0,0.03212607]
[1610069404317,0.23070608,38470.0,38455.0,0.03212607]
[1610069404518,0.23070608,38470.0,38450.0,0.03212642]
[1610069404718,0.23070608,38470.0,38456.0,0.03212864]
[1610069404918,0.23070608,38470.0,38451.0,0.03212892]
[1610069405320,0.09438,38470.0,38457.0,0.03212892]
[1610069405518,0.09438,38470.0,38452.0,0.03212905]
[1610069405718,0.09438,38470.0,38458.0,0.03212978]
[1610069406118,0.09438,38470.0,38453.0,0.03212952]
[1610069406320,0.09438,38470.0,38459.0,0.03212988]
[1610069406518,0.09438,38470.0,38454.0,0.0321307]
[1610069406819,0.09438,38470.0,38460.0,0.03213142]
[1610069407021,3.1738,38462.0,38460.0,0.03213142]
[1610069407220,3.27492,38462.0,38455.0,0.03213264]
[1610069407421,0.13632608,38456.0,38431.0,0.13632608]
[1610069407820,4.2385,38446.0,38425.0,0.15436842]
[1610069408020,4.2385,38446.0,38432.0,0.03213532]
[1610069408220,4.2385,38446.0,38407.0,0.18652559]
[1610069408422,0.1199,38451.0,38433.0,0.03214376]
[1610069408822,4.2866,38437.0,38421.0,0.09269]
[1610069409220,4.2866,38437.0,38422.0,0.03214875]
[1610069409422,0.67612608,38423.0,38422.0,0.03214875]
[1610069410321,0.67612608,38423.0,38413.0,0.03215151]
[1610069410521,0.67612608,38423.0,38422.0,0.03215184]
[1610069410821,0.67612608,38423.0,38415.0,0.08748]
[1610069411221,0.67612608,38423.0,38422.0,0.03215376]
[1610069411423,0.67612608,38423.0,38415.0,0.08748]
[1610069411424,0.67612608,38423.0,38416.0,0.03215446]
[1610069411621,0.67612608,38423.0,38422.0,0.03215438]
[1610069412022,0.67612608,38423.0,38417.0,0.03215425]
[1610069412222,0.13632608,38423.0,38422.0,0.03215383]
[1610069412424,0.13632608,38423.0,38418.0,0.03215387]
[1610069412723,0.13632608,38423.0,38422.0,0.03215559]
[1610069412923,0.13632608,38423.0,38419.0,0.0321536]
[1610069414826,0.1199,38451.0,38419.0,0.0321536]
[1610069415025,3.72425775,38480.0,38420.0,4.0784]
[1610069415226,3.2909,38480.0,38420.0,4.0784]
[1610069415425,3.2909,38480.0,38431.0,0.13632608]
[1610069415625,3.2909,38480.0,38431.0,0.23375608]
[1610069415825,3.2909,38480.0,38432.0,0.00029073]
[1610069416025,3.2909,38480.0,38432.0,0.64104414]
[1610069416425,3.2909,38480.0,38433.0,0.03213806]
[1610069416628,1.5,38489.0,38433.0,0.03213806]
[1610069416826,3.0899,38452.0,38433.0,0.03213806]
[1610069417026,3.0899,38452.0,38432.0,0.0321363]
[1610069417225,3.0899,38452.0,38434.0,0.03213499]
[1610069417427,0.13632608,38436.0,38435.0,0.13632608]
[1610069417725,0.13632608,38436.0,38435.0,0.16846092]
[1610069418328,0.13632608,38436.0,38435.0,0.03213484]
[1610069418829,0.13632608,38436.0,38432.0,0.03213583]
[1610069419028,0.13632608,38436.0,38435.0,0.03213597]
[1610069419429,0.13632608,38436.0,38432.0,0.03213592]
[1610069419628,0.13632608,38436.0,38435.0,0.03213606]
[1610069419829,0.13632608,38436.0,38433.0,0.03213632]
[1610069420231,0.13632608,38436.0,38435.0,0.03213677]
[1610069420431,0.13632608,38436.0,38434.0,0.03213633]
[1610069420631,0.13632608,38436.0,38435.0,0.03213678]
[1610069421231,0.13632608,38436.0,38432.0,0.03213639]
[1610069421432,0.13632608,38436.0,38435.0,0.03213716]
[1610069421835,0.13632608,38436.0,38431.0,0.23375608]
[1610069422233,0.13632608,38436.0,38432.0,0.0321349]
[1610069424934,0.13632608,38436.0,38424.0,0.03214457]
[1610069425137,0.25317608,38436.0,38433.0,0.03214208]
[1610069425535,0.25317608,38436.0,38425.0,0.03214306]
[1610069425738,0.25317608,38436.0,38434.0,0.03214339]
[1610069425938,0.25317608,38436.0,38426.0,0.03214304]
[1610069426339,0.25317608,38436.0,38435.0,0.03214304]
[1610069426538,0.25317608,38436.0,38427.0,0.03214253]
[1610069426737,0.25317608,38436.0,38435.0,0.03214106]
[1610069427137,0.25317608,38436.0,38435.0,0.03213894]
[1610069427337,0.25317608,38436.0,38426.0,0.13632608]
[1610069427537,0.25317608,38436.0,38435.0,0.03213848]
[1610069427938,0.11685,38436.0,38427.0,0.03213606]
[1610069428137,0.2859,38451.0,38435.0,0.03213554]
[1610069428337,4.0244,38464.0,38435.0,0.1158]
[1610069428738,4.0244,38464.0,38436.0,0.03213237]
[1610069429440,0.13632608,38447.0,38443.0,0.13632608]
[1610069429638,0.11407,38476.0,38443.0,0.13632608]
[1610069429838,0.11407,38476.0,38443.0,0.27074608]
[1610069430038,3.0972,38486.0,38444.0,0.03213024]
[1610069431138,0.2806,38485.0,38444.0,0.03213024]
[1610069431341,0.2806,38485.0,38464.0,0.13632608]
[1610069431742,0.2806,38485.0,38464.0,0.23885608]
[1610069431944,0.2806,38485.0,38465.0,0.03212052]
[1610069432343,0.2976,38490.0,38465.0,0.03212052]
[1610069432545,3.54603998,38511.0,38465.0,0.03212052]
[1610069432744,3.82003998,38511.0,38465.0,0.03212052]
[1610069432948,3.3892,38511.0,38465.0,0.03212052]
[1610069433346,0.13632608,38469.0,38465.0,0.03212052]
[1610069433545,3.3892,38511.0,38465.0,0.03212052]
[1610069433945,0.274,38511.0,38465.0,0.03212052]
[1610069434148,0.274,38511.0,38474.0,3.9084]
[1610069434346,0.1569,38512.0,38474.0,4.03189]
[1610069434548,0.2732,38510.0,38475.0,0.1849743]
[1610069434746,0.37658,38510.0,38475.0,0.1849743]
[1610069435248,0.10338,38510.0,38475.0,0.1849743]
[1610069435448,0.13632608,38496.0,38495.0,0.13632608]
[1610069435649,0.13632608,38496.0,38495.0,0.58592608]
[1610069435850,0.1569,38512.0,38495.0,0.16843002]
[1610069436049,0.1569,38512.0,38499.0,3.468]
[1610069436551,0.1569,38512.0,38500.0,0.18490501]
[1610069436950,0.1569,38537.0,38500.0,0.18490501]
[1610069437153,0.1569,38537.0,38500.0,0.09368687]
[1610069437350,0.13632608,38522.0,38518.0,0.13632608]
[1610069437949,0.13632608,38522.0,38519.0,0.03209531]
[1610069438151,0.13632608,38522.0,38519.0,0.15303531]
[1610069438552,0.13632608,38522.0,38520.0,0.03209564]
[1610069440452,0.1569,38537.0,38520.0,0.03209564]
[1610069440652,0.1569,38537.0,38520.0,3.80199564]
[1610069441054,0.1569,38537.0,38521.0,0.0320895]
[1610069441454,0.13632608,38527.0,38524.0,0.13632608]
[1610069441857,0.13632608,38527.0,38525.0,0.03208796]
[1610069442456,0.11644,38547.0,38525.0,0.03208796]
[1610069442856,0.2763,38551.0,38525.0,0.03208796]
[1610069443056,0.2723,38556.0,38525.0,0.03208796]
[1610069443458,0.13632608,38538.0,38537.0,0.13632608]
[1610069443857,0.13632608,38538.0,38525.0,0.03208796]
[1610069444059,0.13632608,38538.0,38537.0,0.00028908]
[1610069444258,0.13632608,38538.0,38526.0,0.03207665]
[1610069444459,0.13632608,38538.0,38533.0,0.13252]
[1610069444659,0.13632608,38538.0,38537.0,0.00028908]
[1610069444861,0.13632608,38538.0,38534.0,0.03207655]
[1610069445060,0.13632608,38538.0,38537.0,0.00028904]
[1610069445459,0.13632608,38538.0,38535.0,0.13661512]
[1610069445660,0.13632608,38538.0,38537.0,0.00028904]
[1610069445859,0.13632608,38538.0,38536.0,0.00028902]
[1610069446259,0.1569,38557.0,38537.0,0.00028902]
[1610069446659,0.1569,38557.0,38541.0,3.418]
[1610069447060,0.1569,38557.0,38541.0,3.54673]
[1610069447261,0.1569,38557.0,38542.0,0.00028899]
[1610069447463,0.13632608,38553.0,38552.0,0.13632608]
[1610069448062,0.13632608,38553.0,38552.0,0.13661505]
[1610069448464,0.09367,38569.0,38552.0,0.13661505]
[1610069448763,0.09367,38569.0,38553.0,0.00028897]
[1610069448963,0.09367,38569.0,38553.0,0.55328897]
[1610069449364,0.09367,38569.0,38554.0,0.00028897]
[1610069449563,0.09367,38569.0,38564.0,0.13632608]
[1610069449764,0.4484,38581.0,38564.0,0.13632608]
[1610069449966,0.4484,38581.0,38565.0,0.00028893]
[1610069450765,0.4484,38581.0,38564.0,0.13632608]
[1610069450966,0.4484,38581.0,38566.0,0.00028888]
[1610069451167,0.1569,38581.0,38565.0,0.00028886]
[1610069451566,0.1569,38581.0,38579.0,0.24655608]
[1610069451966,0.1569,38581.0,38579.0,3.93905608]
[1610069452367,0.08572,38596.0,38579.0,3.93905608]
[1610069452968,0.2783,38609.0,38579.0,3.93905608]
[1610069453569,0.2783,38609.0,38580.0,0.00028875]
[1610069455072,0.36308,38609.0,38579.0,3.80273]
[1610069455471,0.13632608,38600.0,38594.0,0.13632608]
[1610069456071,0.36308,38609.0,38594.0,0.13632608]
[1610069456271,0.36308,38609.0,38596.0,3.5321]